[Event "IIFL Wealth  4th Mumbai Junior U-13"]
[Site "Mumbai"]
[Date "2019.01.05"]
[Round "7"]
[White "Vaval Aaditi"]
[Black "Dhrithi Murgod"]
[Result "1-0"]
[ECO "B13"]
[WhiteElo "1367"]
[BlackElo "1177"]
[Annotator "NA RC"]
[PlyCount "91"]
[EventDate "2018.12.30"]
[EventType "swiss"]
[EventCountry "IND"]
[SourceTitle "playchess.com"]
[Source "ChessBase"]
[SourceQuality "1"]
[TimeControl "40/5400+30:1800+30"]

1. e4 {[%emt 0:00:00]} c6 {[%emt 0:01:03]} 2. d4 {[%emt 0:00:00]} d5 {[%emt 0:00:55]} 3. exd5 cxd5 4. Bd3 {[%emt 0:00:00]} e6 {[%emt 0:02:56]} 5. Bf4 {[%emt 0:06:43]} Bd6 {[%emt 0:02:58]} 6. Bxd6 {[%emt 0:01:17]} Qxd6 {[%emt 0:00:12]} 7. c3 {[%emt 0:00:10]} Nf6 {[%emt 0:03:37]} 8. Nf3 {[%emt 0:00:32]} Nc6 {[%emt 0:04:43]} 9. O-O {[%emt 0:00:17]} Bd7 {[%emt 0:02:12]} 10. Nbd2 {[%emt 0:01:06]} O-O {[%emt 0:03:10]} 11. Re1 {[%emt 0:00:13]} h6 {[%emt 0:06:35]} 12. Ne5 {[%emt 0:00:59]} Qc7 {[%emt 0:07:01]} 13. f4 {[%emt 0:01:27]} a6 {[%emt 0:06:21]} 14. Ndf3 {[%emt 0:02:05]} Be8 {[%emt 0:09:21]} 15. g4 {[%emt 0:11:08]} Nd7 {[%emt 0:03:45]} 16. Bc2 {[%emt 0:16:47]} Ndxe5 {[%emt 0:03:30]} 17. Nxe5 {[%emt 0:02:35]} Nxe5 {[%emt 0:00:10]} 18. fxe5 {[%emt 0:00:31]} Qe7 {[%emt 0:00:53]} 19. Qd3 {[%emt 0:01:30]} g6 {[%emt 0:02:26]} 20. Qg3 {[%emt 0:08:57]} Kg7 {[%emt 0:02:44]} 21. h4 {[%emt 0:01:20]} Rg8 {[%emt 0:01:23]} 22. Rf1 {[%emt 0:01:57]} Rc8 {[%emt 0:03:38]} 23. Rf6 {[%emt 0:02:29]} Bb5 {[%emt 0:02:40]} 24. a4 {[%emt 0:01:05]} Bc6 {[%emt 0:01:06]} 25. Qe3 {[%emt 0:01:47]} Rh8 {[%emt 0:01:48]} 26. Raf1 {[%emt 0:01:50]} Rcf8 {[%emt 0:00:28]} 27. Qc1 {[%emt 0:03:59]} Bd7 {[%emt 0:02:42]} 28. Qb1 {[%emt 0:01:48]} Be8 {[%emt 0:00:23]} 29. R1f2 {[%emt 0:04:35]} h5 {[%emt 0:02:44]} 30. g5 {[%emt 0:06:11]} Rhg8 {[%emt 0:05:49]} 31. Qa2 {[%emt 0:01:28]} Qc7 {[%emt 0:00:45]} 32. Qb3 {[%emt 0:04:39]} Qd7 {[%emt 0:06:12]} 33. R6f3 {[%emt 0:03:16]} Qc7 {[%emt 0:01:35]} 34. Bd3 {[%emt 0:00:46]} Qc6 {[%emt 0:01:23]} 35. Qb4 {[%emt 0:00:52]} Qc7 {[%emt 0:00:58]} 36. a5 {[%emt 0:01:43]} Qd7 {[%emt 0:01:42]} 37. b3 {[%emt 0:00:19]} Qc7 {[%emt 0:01:01]} 38. Rf6 {[%emt 0:02:38]} Qd7 {[%emt 0:05:03]} 39. Bxg6 {[%emt 0:00:31]} Rh8 {[%emt 0:00:14]} 40. Bd3 {[%emt 0:00:00]} Qc7 {[%emt 0:00:00]} 41. Be2 {[%emt 0:02:22]} Qd7 {[%emt 0:05:44]} 42. Bd3 {[%emt 0:04:01]} Qc7 {[%emt 0:00:11]} 43. g6 {[%emt 0:01:40]} Rhg8 {[%emt 0:00:27]} 44. gxf7 {[%emt 0:00:35]} Rxf7 {[%emt 0:00:15]} 45. Rg2+ {[%emt 0:00:26]} Kh8 {[%emt 0:00:13]} 46. Rh6+ 1-0

[Event "IIFL Wealth  4th Mumbai Junior U-13"]
[Site "Mumbai"]
[Date "2019.01.05"]
[Round "7"]
[White "Jadhav Jyotiraditya"]
[Black "Sriram S N"]
[Result "1-0"]
[ECO "D38"]
[WhiteElo "1358"]
[BlackElo "1139"]
[Annotator "NA RC"]
[PlyCount "85"]
[EventDate "2018.12.30"]
[EventType "swiss"]
[EventCountry "IND"]
[SourceTitle "playchess.com"]
[Source "ChessBase"]
[SourceQuality "1"]
[TimeControl "40/5400+30:1800+30"]

1. d4 {[%emt 0:00:00]} d5 {[%emt 0:00:03]} 2. c4 {[%emt 0:00:00]} e6 {[%emt 0:00:36]} 3. Nc3 {[%emt 0:00:00]} Bb4 {[%emt 0:01:47]} 4. Nf3 {[%emt 0:00:04]} Nf6 {[%emt 0:04:03]} 5. Bg5 {[%emt 0:00:58]} Nbd7 {[%emt 0:02:48]} 6. e3 {[%emt 0:01:05]} h6 {[%emt 0:01:23]} 7. Bh4 {[%emt 0:00:47]} O-O {[%emt 0:03:52]} 8. cxd5 {[%emt 0:00:10]} exd5 {[%emt 0:00:19]} 9. Bd3 {[%emt 0:00:16]} a6 {[%emt 0:03:46]} 10. O-O {[%emt 0:00:38]} Bxc3 {[%emt 0:15:45]} 11. bxc3 {[%emt 0:00:08]} Re8 {[%emt 0:01:59]} 12. c4 {[%emt 0:08:40]} c6 {[%emt 0:09:12]} 13. cxd5 {[%emt 0:01:35]} cxd5 {[%emt 0:00:21]} 14. Qb3 {[%emt 0:01:27]} a5 {[%emt 0:16:02]} 15. Bb5 {[%emt 0:04:52]} Re7 {[%emt 0:06:45]} 16. a4 {[%emt 0:03:53]} Qb6 {[%emt 0:01:14]} 17. Rab1 {[%emt 0:01:19]} Re6 {[%emt 0:05:06]} 18. Qd3 {[%emt 0:01:18]} Qd6 {[%emt 0:02:04]} 19. Bg3 {[%emt 0:09:02]} Qe7 {[%emt 0:00:45]} 20. Rfc1 {[%emt 0:00:51]} Nb6 {[%emt 0:02:26]} 21. Rc7 {[%emt 0:06:24]} Qf8 22. Rbc1 {[%emt 0:15:40]} Ne8 {[%emt 0:07:52]} 23. R7c5 {[%emt 0:06:13]} Nd6 {[%emt 0:02:04]} 24. Bxd6 {[%emt 0:02:06]} Qxd6 {[%emt 0:00:17]} 25. Qb3 {[%emt 0:03:33]} Bd7 {[%emt 0:06:12]} 26. Ne5 {[%emt 0:06:55]} Bxb5 {[%emt 0:03:15]} 27. Qxb5 {[%emt 0:00:59]} f6 {[%emt 0:00:40]} 28. Nd3 {[%emt 0:00:15]} Rd8 {[%emt 0:02:02]} 29. Qxa5 {[%emt 0:09:40]} Ra8 {[%emt 0:00:57]} 30. Qb5 {[%emt 0:00:14]} Rxa4 {[%emt 0:00:49]} 31. Nf4 {[%emt 0:00:44]} Re7 {[%emt 0:00:30]} 32. Nxd5 {[%emt 0:00:20]} Nxd5 {[%emt 0:00:19]} 33. Qxa4 {[%emt 0:00:27]} Nb6 {[%emt 0:00:34]} 34. Qb3+ {[%emt 0:16:27]} Kh8 {[%emt 0:00:06]} 35. Rb5 {[%emt 0:00:00]} Re6 {[%emt 0:00:38]} 36. Rb1 {[%emt 0:00:00]} Nd7 {[%emt 0:00:56]} 37. Rxb7 {[%emt 0:00:00]} Nf8 {[%emt 0:00:31]} 38. Rb6 {[%emt 0:00:00]} Qxb6 {[%emt 0:00:24]} 39. Qxb6 {[%emt 0:00:00]} Rxb6 {[%emt 0:00:04]} 40. Rxb6 {[%emt 0:00:00]} Nd7 {[%emt 0:00:21]} 41. Rb7 {[%emt 0:00:00]} Nf8 {[%emt 0:00:19]} 42. Kf1 {[%emt 0:00:00]} Kh7 {[%emt 0:00:16]} 43. Ke2 {[%emt 0:00:00] g5} 1-0

[Event "IIFL Wealth  4th Mumbai Junior U-13"]
[Site "Mumbai"]
[Date "2019.01.05"]
[Round "7"]
[White "Khairmode Aditya"]
[Black "Iyer Aarav"]
[Result "1/2-1/2"]
[ECO "B89"]
[WhiteElo "1337"]
[BlackElo "1124"]
[Annotator "NA RC"]
[PlyCount "65"]
[EventDate "2018.12.30"]
[EventType "swiss"]
[EventCountry "IND"]
[SourceTitle "playchess.com"]
[Source "ChessBase"]
[SourceQuality "1"]
[TimeControl "40/5400+30:1800+30"]

1. e4 {[%emt 0:00:00]} c5 {[%emt 0:00:00]} 2. Nf3 {[%emt 0:00:00]} d6 {[%emt 0:00:00]} 3. d4 {[%emt 0:00:00]} cxd4 4. Nxd4 {[%emt 0:00:00]} Nf6 {[%emt 0:00:00]} 5. Nc3 {[%emt 0:00:02]} e6 {[%emt 0:00:37]} 6. Bc4 {[%emt 0:01:16]} Nc6 {[%emt 0:00:12]} 7. Be3 {[%emt 0:02:18]} Be7 {[%emt 0:01:18]} 8. f3 {[%emt 0:01:44]} a6 {[%emt 0:01:26]} 9. Qd2 {[%emt 0:02:37]} O-O {[%emt 0:04:50]} 10. O-O-O {[%emt 0:03:30]} Qc7 {[%emt 0:00:30]} 11. Bb3 {[%emt 0:00:53]} Bd7 {[%emt 0:01:10]} 12. g4 {[%emt 0:01:11]} h6 {[%emt 0:04:50]} 13. h4 {[%emt 0:01:25]} Ne8 {[%emt 0:02:43]} 14. h5 {[%emt 0:11:49]} Qd8 {[%emt 0:00:56]} 15. Rdg1 {[%emt 0:04:41]} Nxd4 {[%emt 0:01:25]} 16. Bxd4 {[%emt 0:02:51]} e5 {[%emt 0:00:35]} 17. Be3 {[%emt 0:01:11]} Bg5 18. Kb1 {[%emt 0:03:34]} Bxe3 {[%emt 0:00:28]} 19. Qxe3 {[%emt 0:00:08]} Qg5 {[%emt 0:00:04]} 20. Qf2 {[%emt 0:01:07]} Be6 {[%emt 0:00:54]} 21. Ne2 {[%emt 0:02:58]} Rd8 {[%emt 0:03:39]} 22. f4 {[%emt 0:02:20]} exf4 {[%emt 0:00:20]} 23. Nxf4 {[%emt 0:00:23]} Bxb3 {[%emt 0:00:32]} 24. axb3 {[%emt 0:00:19]} Nf6 {[%emt 0:02:22]} 25. Qf3 {[%emt 0:20:08]} Rfe8 {[%emt 0:03:36]} 26. Nh3 {[%emt 0:02:02]} Qe5 {[%emt 0:01:12]} 27. Rf1 {[%emt 0:09:35]} Qxe4 {[%emt 0:02:56]} 28. Qf2 {[%emt 0:03:33]} Qe3 {[%emt 0:05:29]} 29. Qh4 {[%emt 0:04:52]} Ne4 {[%emt 0:04:33]} 30. Rd1 {[%emt 0:01:25]} Qg3 {[%emt 0:02:23]} 31. Qxg3 {[%emt 0:00:29]} Nxg3 {[%emt 0:00:10]} 32. Rhg1 {[%emt 0:01:08]} Ne4 {[%emt 0:01:51]} 33. Rge1 {[%emt 0:01:11]} 1/2-1/2

[Event "IIFL Wealth  4th Mumbai Junior U-13"]
[Site "Mumbai"]
[Date "2019.01.05"]
[Round "7"]
[White "Aggarwal Vansh"]
[Black "Rajbeer Ahmed"]
[Result "1/2-1/2"]
[ECO "B21"]
[WhiteElo "1328"]
[BlackElo "1550"]
[Annotator "NA RC"]
[PlyCount "171"]
[EventDate "2018.12.30"]
[EventType "swiss"]
[EventCountry "IND"]
[SourceTitle "playchess.com"]
[Source "ChessBase"]
[SourceQuality "1"]
[TimeControl "40/5400+30:1800+30"]

1. e4 {[%emt 0:00:26]} c5 {[%emt 0:00:00]} 2. d4 {[%emt 0:00:05]} cxd4 {[%emt 0:00:00]} 3. c3 {[%emt 0:00:06]} dxc3 {[%emt 0:00:14]} 4. Nxc3 {[%emt 0:00:02]} Nc6 {[%emt 0:00:31]} 5. Nf3 {[%emt 0:00:18]} e6 {[%emt 0:00:25]} 6. Bc4 {[%emt 0:00:38]} Qc7 {[%emt 0:00:29]} 7. O-O {[%emt 0:00:38]} Nf6 {[%emt 0:00:21]} 8. Qe2 {[%emt 0:00:51]} Ng4 {[%emt 0:01:03]} 9. Rd1 {[%emt 0:02:34]} Bc5 {[%emt 0:12:30]} 10. Be3 {[%emt 0:06:36]} Nxe3 {[%emt 0:10:29]} 11. fxe3 {[%emt 0:00:50]} a6 {[%emt 0:10:20]} 12. Rac1 {[%emt 0:01:41]} Ba7 {[%emt 0:02:44]} 13. Bb3 {[%emt 0:02:21]} Qf4 {[%emt 0:04:47]} 14. Re1 {[%emt 0:03:33]} b5 {[%emt 0:08:33]} 15. Kh1 {[%emt 0:06:59]} Qh6 {[%emt 0:01:17]} 16. a3 {[%emt 0:01:46]} Bb7 {[%emt 0:00:34]} 17. Rcd1 {[%emt 0:01:30]} Rd8 {[%emt 0:02:02]} 18. e5 {[%emt 0:04:47]} Bb8 {[%emt 0:06:19]} 19. Ne4 {[%emt 0:02:36]} Nxe5 {[%emt 0:02:07]} 20. Nd6+ {[%emt 0:01:29]} Bxd6 {[%emt 0:01:30]} 21. Rxd6 {[%emt 0:00:18]} Nxf3 {[%emt 0:01:46]} 22. gxf3 {[%emt 0:00:29]} Qh3 {[%emt 0:00:44]} 23. e4 {[%emt 0:01:18]} Bc6 {[%emt 0:06:58]} 24. Rc1 {[%emt 0:02:13]} O-O {[%emt 0:05:45]} 25. Qd3 {[%emt 0:01:08]} Rc8 {[%emt 0:01:05]} 26. Rg1 {[%emt 0:01:28]} f5 {[%emt 0:07:01]} 27. Qc3 {[%emt 0:02:49]} g6 {[%emt 0:02:58]} 28. Rg3 {[%emt 0:01:26]} Qf1+ {[%emt 0:06:43]} 29. Rg1 {[%emt 0:00:31]} Qh3 {[%emt 0:00:10]} 30. Rg3 {[%emt 0:00:28]} Qf1+ {[%emt 0:00:06]} 31. Rg1 {[%emt 0:00:27]} Qf2 {[%emt 0:00:30]} 32. Rg2 {[%emt 0:00:49]} Qf1+ {[%emt 0:03:16]} 33. Rg1 {[%emt 0:00:03]} Qf2 {[%emt 0:00:10]} 34. Rg2 {[%emt 0:00:10]} Qh4 {[%emt 0:02:18]} 35. Bxe6+ {[%emt 0:02:33]} dxe6 {[%emt 0:00:25]} 36. Rxc6 {[%emt 0:00:02]} Qd8 {[%emt 0:00:53]} 37. Rc2 {[%emt 0:02:48]} Rxc6 {[%emt 0:00:29]} 38. Qxc6 {[%emt 0:00:02]} Qf6 {[%emt 0:00:32]} 39. Qc3 {[%emt 0:01:29]} fxe4 {[%emt 0:00:28]} 40. Qxf6 {[%emt 0:00:00]} Rxf6 {[%emt 0:00:00]} 41. fxe4 {[%emt 0:00:21]} Rf4 {[%emt 0:12:29]} 42. Rc6 {[%emt 0:01:15]} Rxe4 {[%emt 0:00:29]} 43. Rxa6 {[%emt 0:00:01]} Re1+ {[%emt 0:02:30]} 44. Kg2 {[%emt 0:00:02]} Re2+ {[%emt 0:00:07]} 45. Kg1 {[%emt 0:00:13]} Rxb2 {[%emt 0:00:41]} 46. Rxe6 {[%emt 0:00:01]} Ra2 {[%emt 0:00:22]} 47. Rb6 {[%emt 0:00:12]} Ra1+ {[%emt 0:00:32]} 48. Kg2 {[%emt 0:00:10]} Ra2+ {[%emt 0:00:04]} 49. Kg1 {[%emt 0:00:04]} Rxa3 {[%emt 0:00:12]} 50. Rxb5 {[%emt 0:00:40]} Kg7 {[%emt 0:00:13]} 51. Kg2 {[%emt 0:00:10]} Kh6 {[%emt 0:00:05]} 52. Rc5 {[%emt 0:00:19]} Re3 {[%emt 0:02:45]} 53. Rc7 {[%emt 0:02:33]} g5 54. Ra7 {[%emt 0:00:24]} Kg6 {[%emt 0:03:42]} 55. Ra5 {[%emt 0:01:14]} h5 {[%emt 0:03:29]} 56. Rb5 {[%emt 0:00:59]} g4 {[%emt 0:01:01]} 57. Ra5 {[%emt 0:00:49]} h4 {[%emt 0:02:24]} 58. Ra6+ {[%emt 0:01:32]} Kf5 {[%emt 0:00:45]} 59. Ra5+ {[%emt 0:00:26]} Kf4 {[%emt 0:01:27]} 60. Ra4+ {[%emt 0:01:50]} Kf5 {[%emt 0:01:17]} 61. Ra5+ {[%emt 0:00:31]} Kf6 {[%emt 0:02:26]} 62. Ra6+ {[%emt 0:01:03]} Kf5 {[%emt 0:01:31]} 63. Ra5+ {[%emt 0:00:06]} Kf4 {[%emt 0:00:13]} 64. Ra4+ {[%emt 0:00:05]} Re4 {[%emt 0:00:24]} 65. Rxe4+ {[%emt 0:00:50]} Kxe4 {[%emt 0:00:08]} 66. h3 {[%emt 0:00:07]} g3 {[%emt 0:00:18]} 67. Kg1 {[%emt 0:00:02]} Ke3 {[%emt 0:00:11]} 68. Kg2 {[%emt 0:00:19]} Ke2 {[%emt 0:00:30]} 69. Kg1 {[%emt 0:00:10]} Kf3 {[%emt 0:00:51]} 70. Kf1 {[%emt 0:00:09]} g2+ {[%emt 0:00:19]} 71. Kg1 {[%emt 0:00:01]} Ke2 {[%emt 0:00:18]} 72. Kxg2 {[%emt 0:00:02]} Ke3 {[%emt 0:00:07]} 73. Kg1 {[%emt 0:00:07]} Kf3 {[%emt 0:00:03]} 74. Kh2 {[%emt 0:00:06]} Kf2 {[%emt 0:00:04]} 75. Kh1 {[%emt 0:00:05]} Kg3 {[%emt 0:00:08]} 76. Kg1 {[%emt 0:00:07]} Kxh3 {[%emt 0:00:04]} 77. Kh1 {[%emt 0:00:11]} Kg4 {[%emt 0:00:11]} 78. Kg2 {[%emt 0:00:02]} h3+ {[%emt 0:00:00]} 79. Kh1 {[%emt 0:00:00]} Kh4 {[%emt 0:00:00]} 80. Kh2 {[%emt 0:00:00]} Kg4 {[%emt 0:00:00]} 81. Kh1 {[%emt 0:00:00]} Kg3 {[%emt 0:00:00]} 82. Kg1 {[%emt 0:00:00]} Kf3 {[%emt 0:00:12]} 83. Kh2 {[%emt 0:00:00]} Kg4 {[%emt 0:00:07]} 84. Kh1 {[%emt 0:00:05]} Kg3 {[%emt 0:00:04]} 85. Kg1 {[%emt 0:00:11]} h2+ {[%emt 0:00:03]} 86. Kh1 {[%emt 0:00:04]} 1/2-1/2

[Event "IIFL Wealth  4th Mumbai Junior U-13"]
[Site "Mumbai"]
[Date "2019.01.05"]
[Round "7"]
[White "Anurag Panigrahi"]
[Black "Aditya Sriram"]
[Result "1/2-1/2"]
[ECO "B23"]
[WhiteElo "1315"]
[BlackElo "1315"]
[Annotator "NA RC"]
[PlyCount "58"]
[EventDate "2018.12.30"]
[EventType "swiss"]
[EventCountry "IND"]
[SourceTitle "playchess.com"]
[Source "ChessBase"]
[SourceQuality "1"]
[TimeControl "40/5400+30:1800+30"]

1. e4 {[%emt 0:00:00]} c5 {[%emt 0:00:00]} 2. Nc3 {[%emt 0:00:00]} d6 {[%emt 0:00:27]} 3. f4 {[%emt 0:00:00]} Nc6 {[%emt 0:00:24]} 4. Nf3 {[%emt 0:00:00]} Nf6 {[%emt 0:00:35]} 5. Bb5 {[%emt 0:01:17]} Bd7 {[%emt 0:00:47]} 6. d3 {[%emt 0:00:13]} g6 {[%emt 0:01:59]} 7. O-O {[%emt 0:01:14]} Bg7 {[%emt 0:00:13]} 8. Bd2 {[%emt 0:02:28]} O-O {[%emt 0:00:24]} 9. Bxc6 {[%emt 0:05:17]} Bxc6 {[%emt 0:00:14]} 10. Qe1 {[%emt 0:00:45]} Qc7 {[%emt 0:02:27]} 11. f5 {[%emt 0:02:04]} Rfe8 {[%emt 0:06:14]} 12. Qh4 {[%emt 0:04:09]} a6 {[%emt 0:06:09]} 13. Bh6 {[%emt 0:05:16]} b5 {[%emt 0:04:36]} 14. Ng5 {[%emt 0:02:47]} Bh8 {[%emt 0:04:19]} 15. fxg6 {[%emt 0:11:47]} fxg6 {[%emt 0:00:21]} 16. Rae1 {[%emt 0:16:08]} Qd7 {[%emt 0:21:45]} 17. h3 {[%emt 0:05:35]} e5 {[%emt 0:13:11]} 18. Re3 {[%emt 0:05:21]} b4 {[%emt 0:07:25]} 19. Nd5 {[%emt 0:03:08]} Nxd5 {[%emt 0:04:14]} 20. exd5 {[%emt 0:19:11]} Bxd5 {[%emt 0:00:14]} 21. Ne4 Bxe4 {[%emt 0:06:06]} 22. dxe4 {[%emt 0:04:14]} Qe7 {[%emt 0:07:04]} 23. Bg5 {[%emt 0:02:08]} Qe6 {[%emt 0:00:36]} 24. Ref3 {[%emt 0:02:30]} Bg7 {[%emt 0:02:14]} 25. Bh6 {[%emt 0:02:22]} Qe7 {[%emt 0:01:28]} 26. Bg5 {[%emt 0:01:00]} Qe6 {[%emt 0:03:21]} 27. Bh6 {[%emt 0:01:05]} Qe7 {[%emt 0:01:33]} 28. Bg5 {[%emt 0:00:40]} Qe6 {[%emt 0:00:22]} 29. Bh6 {[%emt 0:00:25]} Qe7 1/2-1/2

[Event "IIFL Wealth  4th Mumbai Junior U-13"]
[Site "Mumbai"]
[Date "2019.01.05"]
[Round "7"]
[White "Sohanganesh Uddhav Nikam"]
[Black "Pingale Shivraj"]
[Result "1/2-1/2"]
[ECO "C01"]
[WhiteElo "1299"]
[BlackElo "1580"]
[Annotator "NA RC"]
[PlyCount "104"]
[EventDate "2018.12.30"]
[EventType "swiss"]
[EventCountry "IND"]
[SourceTitle "playchess.com"]
[Source "ChessBase"]
[SourceQuality "1"]
[TimeControl "40/5400+30:1800+30"]

1. e4 {[%emt 0:00:00]} e6 {[%emt 0:00:00]} 2. d4 {[%emt 0:00:00]} d5 {[%emt 0:00:00]} 3. exd5 {[%emt 0:00:00]} exd5 {[%emt 0:00:00]} 4. Nf3 {[%emt 0:00:00]} Nf6 {[%emt 0:00:00]} 5. Bd3 {[%emt 0:00:00]} c5 {[%emt 0:00:03]} 6. c3 {[%emt 0:00:02]} Bd6 {[%emt 0:00:57]} 7. Qe2+ {[%emt 0:00:52]} Be7 {[%emt 0:00:39]} 8. dxc5 {[%emt 0:01:04]} O-O {[%emt 0:00:16]} 9. Be3 {[%emt 0:00:32]} Re8 {[%emt 0:00:46]} 10. b4 {[%emt 0:02:38]} Bg4 {[%emt 0:04:15]} 11. Qc2 {[%emt 0:05:27]} a5 {[%emt 0:01:45]} 12. Ne5 {[%emt 0:10:55]} axb4 {[%emt 0:02:13]} 13. O-O {[%emt 0:02:51]} Bh5 {[%emt 0:04:51]} 14. Bb5 {[%emt 0:00:36]} Nfd7 {[%emt 0:07:32]} 15. Nxd7 {[%emt 0:01:43]} Nxd7 {[%emt 0:00:23]} 16. Qf5 {[%emt 0:00:12]} Nf6 {[%emt 0:01:01]} 17. Bxe8 {[%emt 0:00:13]} Qxe8 {[%emt 0:00:04]} 18. cxb4 {[%emt 0:01:12]} Bg6 {[%emt 0:00:32]} 19. Qe5 {[%emt 0:00:30]} Ng4 {[%emt 0:00:17]} 20. Qf4 {[%emt 0:03:49]} Nxe3 {[%emt 0:03:18]} 21. Qxe3 {[%emt 0:01:22]} Bf6 {[%emt 0:01:14]} 22. Qxe8+ {[%emt 0:01:01]} Rxe8 {[%emt 0:00:09]} 23. Nd2 {[%emt 0:05:26]} Bxa1 {[%emt 0:01:41]} 24. Rxa1 {[%emt 0:00:02]} Bd3 {[%emt 0:03:55]} 25. Nb3 {[%emt 0:00:27]} Kf8 {[%emt 0:05:44]} 26. Na5 {[%emt 0:02:20]} Re4 {[%emt 0:04:04]} 27. a3 {[%emt 0:11:43]} Ba6 {[%emt 0:00:29]} 28. Rb1 {[%emt 0:02:24]} Bd3 {[%emt 0:05:17]} 29. Rd1 {[%emt 0:01:27]} Bc2 {[%emt 0:02:00]} 30. Rc1 {[%emt 0:00:03]} d4 {[%emt 0:02:41]} 31. f3 {[%emt 0:01:15]} Re2 {[%emt 0:00:09]} 32. c6 {[%emt 0:10:29]} bxc6 {[%emt 0:14:23]} 33. Nxc6 {[%emt 0:00:03]} d3 {[%emt 0:00:18]} 34. Nd4 {[%emt 0:00:06]} Re8 {[%emt 0:02:34]} 35. Nxc2 {[%emt 0:04:20]} Rc8 {[%emt 0:00:58]} 36. Kf1 {[%emt 0:00:37]} dxc2 {[%emt 0:00:14]} 37. Ke2 {[%emt 0:00:45]} Ra8 {[%emt 0:00:06]} 38. Rxc2 {[%emt 0:00:26]} Rxa3 {[%emt 0:00:04]} 39. Rb2 {[%emt 0:00:08]} Ke7 {[%emt 0:00:25]} 40. b5 {[%emt 0:00:00]} Ra7 {[%emt 0:00:00]} 41. Kd3 {[%emt 0:01:41]} Kd6 {[%emt 0:04:58]} 42. Kc4 {[%emt 0:00:13]} Rc7+ {[%emt 0:01:09]} 43. Kb4 {[%emt 0:00:17]} Rc1 {[%emt 0:00:15]} 44. Ka5 {[%emt 0:01:15]} Kc7 {[%emt 0:00:38]} 45. Re2 {[%emt 0:04:05]} Ra1+ {[%emt 0:01:04]} 46. Kb4 {[%emt 0:00:03]} Rb1+ {[%emt 0:00:13]} 47. Kc5 {[%emt 0:00:15]} Rc1+ {[%emt 0:00:41]} 48. Kd4 {[%emt 0:00:14]} Rd1+ {[%emt 0:00:38]} 49. Kc3 {[%emt 0:00:07]} Rc1+ {[%emt 0:03:04]} 50. Kb2 {[%emt 0:00:23]} Rg1 {[%emt 0:00:15]} 51. g3 {[%emt 0:00:54]} Kb6 {[%emt 0:01:14]} 52. Kc3 {[%emt 0:02:40]} Rh1 {[%emt 0:01:16]} 1/2-1/2

[Event "IIFL Wealth  4th Mumbai Junior U-13"]
[Site "Mumbai"]
[Date "2019.01.05"]
[Round "7"]
[White "Sneha Halder"]
[Black "Jain Aryan S"]
[Result "0-1"]
[ECO "D02"]
[WhiteElo "1282"]
[BlackElo "1115"]
[Annotator "NA RC"]
[PlyCount "118"]
[EventDate "2018.12.30"]
[EventType "swiss"]
[EventCountry "IND"]
[SourceTitle "playchess.com"]
[Source "ChessBase"]
[SourceQuality "1"]
[TimeControl "40/5400+30:1800+30"]

1. Nf3 {[%emt 0:03:28]} d5 {[%emt 0:00:00]} 2. d4 {[%emt 0:00:25]} Nf6 {[%emt 0:00:00]} 3. Bf4 {[%emt 0:00:10]} e6 {[%emt 0:00:14]} 4. e3 {[%emt 0:00:23]} a6 {[%emt 0:00:07]} 5. c3 {[%emt 0:00:11]} b6 {[%emt 0:00:07]} 6. Nbd2 {[%emt 0:00:20]} Bb7 {[%emt 0:00:05]} 7. Bd3 {[%emt 0:00:14]} Nbd7 {[%emt 0:00:06]} 8. O-O {[%emt 0:08:00]} Be7 {[%emt 0:00:22]} 9. b4 {[%emt 0:00:37]} O-O {[%emt 0:00:17]} 10. a4 {[%emt 0:00:30]} c5 {[%emt 0:00:57]} 11. bxc5 {[%emt 0:00:55]} bxc5 {[%emt 0:00:21]} 12. Ne5 {[%emt 0:00:10]} Nxe5 {[%emt 0:00:48]} 13. Bxe5 {[%emt 0:01:30]} c4 {[%emt 0:00:38]} 14. Bc2 {[%emt 0:00:56]} Bd6 {[%emt 0:00:36]} 15. Bxd6 {[%emt 0:00:26]} Qxd6 {[%emt 0:00:16]} 16. f4 {[%emt 0:12:03]} g6 {[%emt 0:08:36]} 17. g4 {[%emt 0:02:04]} Qe7 {[%emt 0:02:09]} 18. g5 {[%emt 0:00:45]} Nh5 {[%emt 0:01:51]} 19. Kg2 {[%emt 0:01:18]} f6 {[%emt 0:02:18]} 20. h4 {[%emt 0:00:47]} fxg5 {[%emt 0:01:09]} 21. hxg5 {[%emt 0:00:28]} e5 {[%emt 0:02:17]} 22. dxe5 {[%emt 0:10:33]} d4+ {[%emt 0:00:52]} 23. Nf3 {[%emt 0:03:44]} dxe3 {[%emt 0:00:45]} 24. Kh2 {[%emt 0:09:04]} Nxf4 {[%emt 0:01:07]} 25. Qd4 {[%emt 0:00:48]} Bxf3 {[%emt 0:03:10]} 26. Rxf3 {[%emt 0:01:12]} Qxg5 {[%emt 0:01:40]} 27. Qxc4+ {[%emt 0:02:13]} Kh8 {[%emt 0:00:14]} 28. Qf1 {[%emt 0:16:49]} e2 {[%emt 0:03:29]} 29. Qf2 {[%emt 0:05:24]} Qh5+ {[%emt 0:00:36]} 30. Kg1 {[%emt 0:01:58]} Nh3+ {[%emt 0:00:31]} 31. Rxh3 {[%emt 0:00:44]} Qxh3 {[%emt 0:00:27]} 32. Qxe2 {[%emt 0:04:30]} Qg3+ {[%emt 0:00:11]} 33. Qg2 {[%emt 0:03:37]} Qxc3 {[%emt 0:00:20]} 34. Rd1 {[%emt 0:04:55]} Qxe5 {[%emt 0:01:06]} 35. Be4 {[%emt 0:02:35]} Rab8 {[%emt 0:00:29]} 36. Bd3 {[%emt 0:02:09]} Qe3+ {[%emt 0:00:26]} 37. Kh1 {[%emt 0:00:13]} Rf2 {[%emt 0:00:08]} 38. Qg4 {[%emt 0:00:41]} Qf3+ {[%emt 0:00:54]} 39. Qxf3 {[%emt 0:00:09]} Rxf3 {[%emt 0:00:08]} 40. Bxa6 {[%emt 0:00:00]} Rbf8 {[%emt 0:00:00]} 41. Ra1 {[%emt 0:01:12]} g5 {[%emt 0:01:03]} 42. a5 {[%emt 0:00:14]} R3f7 {[%emt 0:01:11]} 43. Be2 {[%emt 0:01:22]} Ra7 {[%emt 0:00:24]} 44. a6 {[%emt 0:02:07]} Rf2 {[%emt 0:01:08]} 45. Bb5 {[%emt 0:00:58]} g4 {[%emt 0:00:12]} 46. Rc1 {[%emt 0:01:16]} g3 {[%emt 0:01:18]} 47. Kg1 {[%emt 0:02:02]} Rb2 {[%emt 0:00:24]} 48. Bd3 {[%emt 0:01:36]} h5 {[%emt 0:01:23]} 49. Rc5 {[%emt 0:02:06]} Rh2 {[%emt 0:01:17]} 50. Rg5 {[%emt 0:01:53]} h4 {[%emt 0:02:10]} 51. Rh5+ {[%emt 0:00:18]} Kg8 {[%emt 0:00:09]} 52. Rg5+ {[%emt 0:02:08]} Kf7 {[%emt 0:00:38]} 53. Rf5+ {[%emt 0:01:53]} Ke6 {[%emt 0:00:14]} 54. Rg5 {[%emt 0:00:28]} Rc7 {[%emt 0:01:13]} 55. Bf1 {[%emt 0:03:27]} Rf2 {[%emt 0:01:49]} 56. a7 {[%emt 0:15:26]} Rc1 {[%emt 0:01:24]} 57. Rg6+ {[%emt 0:02:06]} Kf5 {[%emt 0:00:13]} 58. Rf6+ {[%emt 0:00:55]} Kxf6 {[%emt 0:00:10]} 59. a8=Q {[%emt 0:00:32]} Rcxf1# {[%emt 0:00:07]} 0-1